Cogmind - Beta 13 @@@ ROGUE MODE // 2024.04.14 @ 23:26:12 Player: chexo4 Result: Core destroyed Performance ------------- Evolutions (1) 500 Regions Visited (3) 600 Robots Destroyed (66) 330 Value Destroyed (1120) 1120 Prototype IDs (3) 60 Alien Tech Used (0) 0 Bonus (0) 0 TOTAL SCORE: 2610 Bonus ------- None Cogmind --------- Core Integrity 0/400 Matter 165/300 Energy 280/280 System Corruption 0% Temperature Critical (582) Movement Walking (190) Ox1 Location -9/Mines Parts ------- > --- POWER (1) -------- Heavy Ion Engine > --- PROPULSION (4) --- Improved Aluminum Leg Improved Aluminum Leg Improved Aluminum Leg > --- UTILITY (2) ------ Large Storage Unit > --- WEAPON (2) ------- EM Shotgun Advanced Beam Cannon > --- INVENTORY (15) --- Light Ion Engine Armored Treads Armored Treads Armored Treads Armored Treads Improved Aluminum Leg Hover Unit Hover Unit Advanced Visual Processing Unit Signal Interpreter Particle Gun Assault Rifle Assault Rifle Mining Laser Peak State ------------ > --- POWER ------------ Light Ion Engine > --- PROPULSION ------- Armored Treads Armored Treads Armored Treads Armored Treads > --- UTILITY ---------- Large Storage Unit Seismic Detector > --- WEAPON ----------- Particle Gun Autogun > --- INVENTORY -------- Wheel Wheel Hover Unit Hover Unit Hover Unit Advanced Visual Processing Unit Signal Interpreter EM Shotgun Assault Rifle Assault Rifle Mining Laser [Rating: 20] Favorites ----------- Power Light Ion Engine Engine Light Ion Engine Propulsion Improved Aluminum Leg Treads Armored Treads Leg Improved Aluminum Leg Wheel Wheel Hover Unit Hover Unit Flight Unit Improved Flight Unit Utility Large Storage Unit Device Seismic Detector Storage Large Storage Unit Weapon Light Cannon Energy Gun Heavy EM Pulse Gun Energy Cannon Advanced Beam Cannon Ballistic Gun Assault Rifle Ballistic Cannon Light Cannon Build | -11 -10 -9 -9 ------- Run | Yrd Mat Mat Min Slots Evolved 2 | . . 2 . Power . | . . . . Propulsion 2 | . . 2 . Utility . | . . . . Weapon . | . . . . Parts Attached 49 | 7 14 27 1 Power 5 | 1 1 3 . Engine 5 | 1 1 3 . Core . | . . . . Reactor . | . . . . Propulsion 25 | 2 7 16 . Treads 4 | . . 4 . Leg 5 | . . 5 . Wheel 10 | 2 5 3 . Hover 5 | . 2 3 . Flight 1 | . . 1 . Utility 5 | 2 2 1 . Device 2 | 1 . 1 . Storage 3 | 1 2 . . Processor . | . . . . Hackware . | . . . . Protection . | . . . . Artifact . | . . . . Weapon 14 | 2 4 7 1 Energy Gun 5 | . 1 3 1 Energy Cannon 1 | . . 1 . Ballistic Gun 7 | 2 2 3 . Ballistic Cannon 1 | . 1 . . Launcher . | . . . . Special Weapon . | . . . . Impact Weapon . | . . . . Slashing Weapon . | . . . . Piercing Weapon . | . . . . Special Melee Weapon . | . . . . Unidentified Prototypes 3 | . . 3 . Parts Lost 14 | . 3 9 2 Power 4 | . 1 3 . Propulsion 4 | . 1 2 1 Utility 2 | . 1 1 . Weapon 4 | . . 3 1 Highest Loss Streak 2 | . 2 2 2 To Critical Strikes . | . . . . Average Slot Usage (%) 90 | . 85 92 85 Engine 9 | . 7 10 11 Treads 8 | . . 13 . Leg 10 | . . 11 42 Wheel 16 | . 25 14 . Device 5 | . 1 7 . Storage 15 | . 21 12 11 Energy Gun 7 | . 6 8 1 Energy Cannon 1 | . . . 11 Ballistic Gun 8 | . 14 6 8 Ballistic Cannon 6 | . 7 6 . Naked Turns . | . . . . Heaviest Build 39 | 13 39 39 35 Greatest Support 80 | 26 26 80 52 Greatest Overweight (x) 2 | 1 1 2 . Average Overweight (x) . | . . . . Largest Inventory Capacity 15 | 8 15 15 15 Average Capacity 12 | 7 9 15 15 Most Carried 15 | 6 10 15 15 Average Carried 9 | 2 5 11 14 Final Capacity 15 | 8 15 15 15 Final Carried 15 | 3 10 15 14 Class Distribution -------------------- 83% | Mutant 16% | Scavenger-Mutant Dominant Class ---------------- Mutant | -10/Materials Mutant | -9/Materials Mutant | -9/Mines Resources | -11 -10 -9 -9 ----------- Run | Yrd Mat Mat Min Matter Collected 1216 | 297 428 440 51 Remotely . | . . . . Salvage Created 1957 | 130 707 878 242 Parts 130 | 9 39 66 16 Haulers Intercepted 1 | . . 1 . Recyclers Shooed 3 | 1 2 . . Parts Field Recycled . | . . . . Retrieved Matter . | . . . . Parts Self-Destructed . | . . . . Prevented . | . . . . Kills | -11 -10 -9 -9 ------- Run | Yrd Mat Mat Min Combat Hostiles Destroyed 36 | . 7 25 4 Guns 26 | . 7 17 2 Cannons 9 | . . 8 1 Classes Destroyed 12 | 2 5 4 1 Worker 8 | . 5 2 1 Builder 2 | . 1 1 . Tunneler 6 | 3 . 1 2 Hauler 1 | . . 1 . Recycler 6 | 1 4 1 . Mechanic 1 | . . 1 . Operator 1 | . . 1 . Watcher 5 | . 3 2 . Swarmer 17 | . 3 14 . Grunt 15 | . 4 8 3 Brawler 1 | . . . 1 Sentry 3 | . . 3 . Best Kill Streak 10 | 1 8 10 3 Combat Bots Only 6 | . 5 6 2 Max Kills in Single Turn 2 | 1 2 2 2 Gunslinging 1 | . 1 1 . Exploded . | . . . . Melee . | . . . . Uniques/NPCs Destroyed . | . . . . Combat | -11 -10 -9 -9 -------- Run | Yrd Mat Mat Min Hostile Shots Fired 266 | . 61 145 60 Missed 76 | . 16 45 15 Damage Taken 2207 | . 487 1051 669 Core 493 | . 70 205 218 Absorbed by Shields . | . . . . Core Remaining (%) 86 | 100 72 . . Volleys Fired 167 | 10 55 82 20 Largest 2 | 2 2 2 2 Hottest 113 | 40 80 100 113 Shots Fired 308 | 20 104 149 35 Gun 212 | 20 79 95 18 Cannon 96 | . 25 54 17 Launcher . | . . . . Special . | . . . . Kinetic 203 | 20 85 87 11 Thermal 31 | . . 14 17 Explosive . | . . . . Electromagnetic 74 | . 19 48 7 Robot Hit Streak 18 | 6 8 14 18 Robot Miss Streak 7 | 6 5 7 4 Penetration Max . | . . . . Secondary Targets 4 | . 1 3 . Max Gunslinging Chain 1 | . 1 1 . Shots Hit Robots 176 | 9 58 85 24 Core Hits 85 | 5 26 43 11 Critical Kills . | . . . . Critical Parts Destroyed . | . . . . Critical Strikes 1 | . . 1 . Blast 1 | . . 1 . Melee Attacks . | . . . . Impact . | . . . . Slashing . | . . . . Piercing . | . . . . Sneak Attacks . | . . . . Combat Hostiles . | . . . . Follow-up Attacks . | . . . . Damage Inflicted 3041 | 141 881 1538 481 Guns 1893 | 141 628 891 233 Cannons 1095 | . 253 594 248 Explosions 32 | . . 32 . Melee . | . . . . Ramming 21 | . . 21 . Kinetic 1850 | 141 707 883 119 Thermal 396 | . . 148 248 Explosive . | . . . . Electromagnetic 774 | . 174 486 114 Impact . | . . . . Slashing . | . . . . Piercing . | . . . . Highest Corruption . | . . . . Average Corruption . | . . . . Corruption Purged . | . . . . Corruption Blocked . | . . . . Overload Shots . | . . . . Overflow Damage 7 | . . 3 4 Projectiles 7 | . . 3 4 Explosions . | . . . . Melee . | . . . . Knockbacks 4 | . . 4 . Impact . | . . . . Kinetic 4 | . . 4 . Secondary . | . . . . Self-Inflicted Damage 10 | . . 10 . Shots . | . . . . Rammed 1 | . . 1 . Targets Rammed 1 | . . 1 . Kicked . | . . . . Crushed . | . . . . Highest Temperature 582 | 6 15 178 582 Average Temperature 73 | 6 3 41 257 Received Heat Transfer 825 | . 192 321 312 Effects 5 | . . . 5 Interference 1 | . . . 1 Short Circuit 1 | . . . 1 Damage (major) 1 | . . . 1 Damage (core) 2 | . . . 2 Siege Activations . | . . . . Robots Corrupted . | . . . . Combat Hostiles . | . . . . Parts Fried 1 | . . 1 . Impact Corruptions . | . . . . Robots Melted 1 | . . . 1 Combat Hostiles 1 | . . . 1 Parts Melted . | . . . . Heat Transferred 803 | . . 359 444 Parts Sabotaged . | . . . . Parts Stolen . | . . . . Parts Stripped . | . . . . Power Chain Reactions 2 | . . 2 . Alert | -11 -10 -9 -9 ------- Run | Yrd Mat Mat Min Peak Influence 270 | 20 217 270 185 Initial 75 | . 13 22 75 Average 114 | 10 91 136 116 Maximum Alert Level 1 | . 1 1 . Low Security (%) 88 | 100 92 83 100 Level 1 11 | . 7 16 . Level 2 . | . . . . Level 3 . | . . . . Level 4 . | . . . . Level 5 . | . . . . High Security . | . . . . Max Security . | . . . . Squads Dispatched 5 | . 1 4 . Investigation 3 | . 1 2 . Extermination . | . . . . Reinforcement 2 | . . 2 . Assault . | . . . . Garrison . | . . . . Intercept . | . . . . Searches Triggered . | . . . . Construction Impeded . | . . . . Haulers Reinforced . | . . . . Active Scanning Responses . | . . . . Cargo Convoy Interrupts . | . . . . Stealth | -11 -10 -9 -9 --------- Run | Yrd Mat Mat Min Distress Signals 4 | . . 4 . Communications Jammed . | . . . . Distress Signals . | . . . . Times Spotted 55 | . 14 36 5 Peak Tracking Total 6 | . 6 6 3 Tactical Retreats 2 | . . 2 . Traps | -11 -10 -9 -9 ------- Run | Yrd Mat Mat Min Traps Triggered . | . . . . Indirectly . | . . . . Trap Hack Attempts . | . . . . Triggered . | . . . . Disarmed . | . . . . Reprogrammed . | . . . . Reused . | . . . . Traps Extracted . | . . . . Installed . | . . . . Triggered . | . . . . Machines | -11 -10 -9 -9 ---------- Run | Yrd Mat Mat Min Machines Disabled 1 | . . 1 . Max in Single Turn 1 | . . 1 . Machines Repaired . | . . . . Machines Dismantled . | . . . . Machines Sabotaged . | . . . . Overloaded Fab Kills . | . . . . Hacking | -11 -10 -9 -9 --------- Run | Yrd Mat Mat Min Machines Accessed 8 | . 3 5 . Terminals 8 | . 3 5 . Fabricators . | . . . . Repair Stations . | . . . . Recycling Units . | . . . . Scanalyzers . | . . . . Garrison Access . | . . . . Total Hacks 28 | . 10 18 . Successful 14 | . 5 9 . Failed 14 | . 5 9 . Catastrophic . | . . . . Database Lockouts . | . . . . Manual 23 | . 9 14 . Terminals 28 | . 10 18 . Fabricators . | . . . . Repair Stations . | . . . . Recycling Units . | . . . . Scanalyzers . | . . . . Garrison Access . | . . . . Terminal Hacks 9 | . 3 6 . Robot Analysis 1 | . 1 . . Branch Access Points 1 | . . 1 . Terminal Index 1 | . . 1 . Alert Level 2 | . 1 1 . Unreport Threat 2 | . 1 1 . Recall Reinforcements 1 | . . 1 . Zone Layout 1 | . . 1 . Fabricator Hacks . | . . . . Repair Station Hacks . | . . . . Recycling Unit Hacks . | . . . . Scanalyzer . | . . . . Garrison Access Hacks . | . . . . Unauthorized Hacks 5 | . 2 3 . Terminals 5 | . 2 3 . Track 1 | . . 1 . Assimilate 2 | . 1 1 . Operators 2 | . 1 1 . Fabricators . | . . . . Repair Stations . | . . . . Recycling Units . | . . . . Scanalyzers . | . . . . Garrison Access . | . . . . Data Cores Recovered . | . . . . Used . | . . . . Hacking Detections 7 | . 2 5 . Full Trace Events 4 | . 1 3 . Feedback Events . | . . . . Feedback Blocked . | . . . . Robot Schematics Acquired . | . . . . Robots Built . | . . . . Authchips . | . . . . Time . | . . . . Total Robot Build Rating . | . . . . Part Schematics Acquired . | . . . . Parts Built . | . . . . Authchips . | . . . . Time . | . . . . Total Part Build Rating . | . . . . Parts Repaired . | . . . . Time . | . . . . Parts Recycled . | . . . . Recycled Matter . | . . . . Retrieved Matter . | . . . . Retrieved Components . | . . . . Parts Scanalyzed . | . . . . Part Schematics Acquired . | . . . . Parts Damaged . | . . . . Bothacking | -11 -10 -9 -9 ------------ Run | Yrd Mat Mat Min Used RIF Installer . | . . . . Robots Hacked . | . . . . Non-combat . | . . . . Combat . | . . . . Robot Hacks Applied . | . . . . Relay Couplers Released . | . . . . Fabnet Peak Effective % . | . . . . Robots Rewired . | . . . . Allies Hacked . | . . . . Hacks Repelled . | . . . . Allies | -11 -10 -9 -9 -------- Run | Yrd Mat Mat Min Total Allies 1 | . 1 . . Largest Group 1 | . 1 1 1 Highest-Rated Group 10 | . 10 10 10 Highest-Rated Ally 10 | . 10 10 10 Total Orders . | . . . . Ally Attacks . | . . . . Total Damage . | . . . . Kills . | . . . . Allies Corrupted . | . . . . Allies Melted . | . . . . Intel | -11 -10 -9 -9 ------- Run | Yrd Mat Mat Min Robot Analysis Total 1 | . 1 . . Derelict Logs Recovered 1 | . . . 1 Drone Launches . | . . . . Drone Recoveries . | . . . . Exploration | -11 -10 -9 -9 ------------- Run | Yrd Mat Mat Min Turns Passed 2288 | 148 648 1347 145 Spaces Moved 1483 | 120 492 808 63 Core 18 | 18 . . . Treads 169 | . . 169 . Legs 297 | . . 234 63 Wheels 999 | 102 492 405 . Hover . | . . . . Flight . | . . . . Fastest Speed 50 | 50 90 85 120 Average Speed 109 | 84 91 123 120 Slowest Speed 260 | 100 105 260 120 Overloaded Moves . | . . . . Propulsion Burnouts . | . . . . Robots Hopped . | . . . . Cave-ins Triggered . | . . . . Exploration Rate (%) 30 | 5 46 53 17 Regions Visited 3 Branch Regions 1 Pre-discovered Areas 1 | . . . 1 Known Exits Taken 1 | . . 1 . Unknown Exits Taken 2 | 1 1 . . Scrap Searched 2 | . . . 2 Spaces Dug . | . . . . Terrain Destroyed 6 | . . 6 . Melee . | . . . . Projectile . | . . . . AOE 6 | . . 6 . Terrain Rammed . | . . . . Walls Destroyed . | . . . . Machines Disabled . | . . . . Actions | -11 -10 -9 -9 --------- Run | Yrd Mat Mat Min Total 1842 | 145 583 1014 100 Wait 92 | . 5 71 16 Move 1480 | 119 491 807 63 Hop . | . . . . Pick Up 41 | 9 13 19 . Fast Attach 2 | 1 . 1 . Attach 23 | 6 3 13 1 Detach 2 | . . 2 . Swap 24 | . 11 13 . Drop 10 | . 5 5 . Fire 167 | 10 55 82 20 Melee . | . . . . Ram 1 | . . 1 . Kick . | . . . . Crush . | . . . . Escape Stasis . | . . . . Rewire . | . . . . Trap . | . . . . Miscellaneous . | . . . . Route ------- -11/Scrapyard -10/Materials (discovered 2 exits: *Mat / [*Min]) -9/Materials (discovered 3 exits: [*Mat x2] / *Min) -9/Mines History --------- Turn | Location | Event 10 | -11/Scrapyard | Discovered new exit (range 15) 149 | -11/Scrapyard | Entered Materials 249 | -10/Materials | Discovered new exit (range 15) 306 | -10/Materials | Build established: Mutant 773 | -10/Materials | Discovered new exit (range 13) 797 | -10/Materials | Entered another Materials area 797 | -9/Materials | Accompanied by 1 ally 797 | -9/Materials | Evolved 2 slots: Propulsion x2 1022 | -9/Materials | Discovered new exit (range 10) 1257 | -9/Materials | Build established: Scavenger-Mutant 1325 | -9/Materials | Identified exit to Mines 1650 | -9/Materials | Build established: Mutant 2040 | -9/Materials | Core integrity fell below 50% 2080 | -9/Materials | Discovered new exit (range 15) 2144 | -9/Materials | Entered Mines 2144 | -9/Mines | Accompanied by 1 ally 2158 | -9/Mines | Met a Derelict bent on vengeance 2288 | -9/Mines | Core integrity fell below 20% 2290 | -9/Mines | Core destroyed Last Messages --------------- R-06 Scavenger collects Wheel. K-01 Serf collects debris. Autogun destroyed. K-01 Serf collects debris. Destroyed Imp. Heat Sink. Imp. Aluminum Leg destroyed. Overheating: EM Shotgun damaged (-8). G-47 Trooper overheating. Destroyed Aluminum Leg. G-47 Trooper heat damages Lgt. Nuclear Core. G-47 Trooper overheating. G-47 Trooper heat damages core (-9). G-34 Mercenary destroyed. Overheating: System interference. Adv. Beam Cannon temporarily disabled. T-07 Excavator destroyed. Imp. Aluminum Leg broken. Overheating: Short circuit. Overheating: Core damaged (-72). Overheating: Core damaged (-40). Map ----- +----------------------------------------------------+ | ?????????????????????????????????????????????????? | | ?????????????????????????????????????????????????? | | ?????????????????????????????????????????????????? | | ?????????????????????????????????????????????????? | | ?????????????????????????????????????????????????? | | ?????????????????????????????????????????????????? | | ?????????????????????????????????????????????????? | | ?????????????????????????????????????????????????? | | ?????????????????????????????????????????????????? | | ?????????????????????????????????????????????????? | | ?????????????????????????????????????????????????? | | ?????????????????????????????????????????????????? | | ????????????????? ???????????????????????????????? | | ???????????????? ?????????????????????????????? | | ????????????????? #????????????????????????????? | | ?????????????????# #???????????????????????????? | | ?????????????????# ????????? ?????????????????? | | ?????????????????# ??????? #?????????????????? | | ?????????????????# ?????? #?????????????????? | | ???????????????### ?????? #?????????????????? | | ???????????????? $ ?????? #?????????????????? | | ?????????????????? ????? #?????????????????? | | ??????????????????## ????? #?????????????????? | | ?????????????????## =????? ##????????????????? | | ?????????????????# g%##### #### #???????????? | | ?????????????????# =[%@= #???????????? | | ?????????????????## !%=*r ##??????????????? | | ??????????????????# ###### ###???????????????? | | ?????????????????????????# ##?????????????????? | | ????????????????????????## r##??????????????????? | | ???????????????????????## #????????###????????? | | ??????????????????????## o #????????# ????????? | | ??????????????????????# ######???# #????????? | | ??????????????????????# #???# #????????? | | ??????????????????????## ! ###!#???# #????????? | | ???????????????????????## #?# #???# #????????? | | ????????????????????????#[/####?#*##### #####????? | | ????????????????????????# #????# #????? | | ????????????????????????# #????########### #????? | | ??????????????????# #####% #######????????# #### | | ??????????????????# %= #?????# | | ??????????????????####### ### ###??????### ### | | ????????????????????????# #???????????## ##???? | | ????????????????????????# #???????????# ##??? | | ???????????????????????? #???????????# ###? | | ????????????????????????####???????????## #? | | ????????????????????????????????????????## # | | ?????????????????????????????????????????### | | ????????????????????????????????????????????### | | ???????????????????????????????????????????????# | +----------------------------------------------------+ Best States ------------- Heat Dissipation 28 Energy Generation 14 Energy Capacity 280 Matter Stores 300 Matter Capacity 300 Sight Range 16 Terrain Scan Density 10 Evasion (%) 55 Recoil Reduction 4 Item Schematics ----------------- None Robot Schematics ------------------ None Fabricated ------------ Nothing Alien Tech Used ----------------- None Achievements -------------- GoHome() Challenges ------------ None Game ------ Seed HypercooledStasisBox Manual? 1 Play Time 00:20:36 Cumulative 23.8 hours Start 2024.04.14 @ 23:06:40 End 2024.04.14 @ 23:26:12 Sessions 1 Manual Loads 0 Difficulty Rogue Special Mode None Game No. 70 Rogue 70 Adventurer 0 Explorer 0 Win Type - Total 0 Types 0/0/0/0/0/0/0/0/0 Lore% 19 Gallery% 28 Achievement% 23 Wizard Run 0 Options --------- Layout 1 ASCII 0 Keyboard 0 Movement Arrows Keybinds 0 Fullscreen 2 Font 24/Smallcaps Map View 50x35 Zoom Use 0% Tactical HUD 0 Map Filters NONE Filters NONE Steam 1 RUN: 048270bb-2c48-4712-ab8e-71370849be3f